fUST/lending_fUST_20240215
["ID","MTS","AMOUNT","RATE_DAILY","PERIOD"]
[314121154,1708001438305,-1846.50004868,0.00034899,2]
[314121156,1708001438315,-1543.24,0.00034899,2]
[314121158,1708001438324,-1543.24,0.00034899,2]
[314121160,1708001438334,-1543.24,0.00034899,2]
[314121162,1708001438343,-1543.24,0.00034899,2]
[314121164,1708001438352,-1543.26,0.00034899,2]
[314121166,1708001438361,-311.50590201,0.00034899,15]
[314121168,1708001438371,-502.88772756,0.00034899,15]
[314121170,1708001438380,-500.0,0.00034899,15]
[314121172,1708001438390,-276000.0,0.000349,2]
[314121174,1708001438399,-167.59273193,0.000349,2]
[314121176,1708001438408,-500.0,0.00034964,15]
[314121178,1708001438418,-197.33585836,0.00034964,15]
[314121180,1708001438428,-500.0,0.00034964,15]
[314121182,1708001438437,-471.39400672,0.00034964,15]
[314121184,1708001438446,-500.0,0.00034964,15]
[314121186,1708001438455,-323.79925805,0.00034964,15]
[314121188,1708001438464,-500.0,0.00034964,15]
[314121190,1708001438473,-500.0,0.00034964,15]
[314121192,1708001438484,-500.0,0.00034964,15]
[314121194,1708001438493,-500.0,0.00034964,15]
[314121196,1708001438502,-500.0,0.00034964,15]
[314121198,1708001438511,-500.0,0.00034964,15]
[314121200,1708001438520,-500.0,0.00034964,15]
[314121202,1708001438529,-273.10293043,0.00034964,15]
[314121204,1708001438538,-610.82751815,0.00034964,15]
[314121216,1708001438642,-532.51969046,0.00034964,15]
[314121218,1708001438651,-500.0,0.00034964,15]
[314121220,1708001438661,-500.0,0.00034964,15]
[314121222,1708001438672,-500.0,0.00034964,15]
[314121224,1708001438681,-500.0,0.00034964,15]
[314121226,1708001438690,-500.0,0.00034964,15]
[314121228,1708001438700,-500.0,0.00034964,15]
[314121230,1708001438709,-500.0,0.00034964,15]
[314121232,1708001438718,-517569.84023477,0.00034965,2]
[314121234,1708001438728,-7077.60748204,0.00035,14]
[314121424,1708001441362,-4481.38,0.0003499,3]
[314121425,1708001441373,-10289.79026527,0.00035,14]
[314121426,1708001441386,-3955.00262432,0.00035,14]
[314121454,1708001442963,-826.74228533,0.00035,14]
[314121475,1708001443146,-3280.96952151,0.00035,14]
[314121588,1708001657278,154.87609812,0.000176,2]
[314121607,1708002351680,1318.46092231,0.000189,2]
[314121608,1708002377896,-1076.0,0.000239,2]
[314121637,1708002632085,-242.46092231,0.000239,2]
[314121639,1708002632095,-1318.46092231,0.000289,2]
[314121641,1708002632104,-2021.341,0.0003,2]
[314121643,1708002632113,-207.27474123,0.000309,5]
[314121644,1708002632123,-194.0,0.00031,2]
[314121646,1708002632132,-5000.0,0.00031,2]
[314121647,1708002632142,-5000.0,0.00031,2]
[314121649,1708002632151,-5000.0,0.00031,2]
[314121651,1708002632160,-59.5147958,0.00031,2]
[314121673,1708002638244,-2497.2,0.00031,2]
[314121680,1708002638302,-2443.2852042,0.00031,2]
[314121682,1708002638311,-5000.0,0.00031,2]
[314121684,1708002638320,-2431.30466941,0.00031,2]
[314121686,1708002638330,-2202.8571901,0.00031571,2]
[314121688,1708002638340,-648.69195266,0.00031881,2]
[314121690,1708002638349,-167.025322,0.00031898,2]
[314121691,1708002638358,-24900.0,0.00032118,2]
[314121692,1708002638368,-608.182082,0.00032318,2]
[314121693,1708002638377,-713.5439853,0.00032444,2]
[314121694,1708002638385,-200.0,0.00032549,15]
[314121695,1708002638395,-6387.38660704,0.00033,30]
[314121696,1708002638404,-1261.0,0.00033,2]
[314121697,1708002638413,-153.0,0.00033,2]
[314121698,1708002638422,-162.0,0.00033,2]
[314121699,1708002638431,-4355.62,0.00033001,3]
[314121706,1708002638526,-5400.03780523,0.00033011,5]
[314121708,1708002638537,-1768.81988886,0.00033056,5]
[314121710,1708002638547,-1261.0,0.00033151,2]
[314121712,1708002638556,-1261.0,0.00033425,2]
[314121714,1708002638565,-1261.0,0.00033699,2]
[314121716,1708002638574,-155.0,0.000338,2]
[314121718,1708002638584,-1261.0,0.00033973,2]
[314121720,1708002638593,-51847.6642716,0.00034,2]
[314121722,1708002638602,-167.633153,0.00034037,2]
[314121724,1708002638611,-1261.0,0.00034247,2]
[314121726,1708002638619,-399.1741098,0.00034311,2]
[314121728,1708002638628,-40000.0,0.000345,2]
[314121730,1708002638638,-1261.0,0.00034521,2]
[314121733,1708002638647,-162.0,0.00034521,2]
[314121734,1708002638656,-14571.3595019,0.00034796,31]
[314121736,1708002638666,-10754.56325723,0.00034798,15]
[314121737,1708002638675,-342.99,0.00034799,2]
[314121738,1708002638684,-342.99,0.00034799,2]
[314121739,1708002638693,-342.99,0.00034799,2]
[314121740,1708002638703,-342.99,0.00034799,2]
[314121741,1708002638712,-342.99,0.00034799,2]
[314121742,1708002638721,-342.99,0.00034799,2]
[314121743,1708002638731,-343.01,0.00034799,2]
[314121744,1708002638740,-343.0,0.00034799,2]
[314121745,1708002638749,-343.0,0.00034799,2]
[314121746,1708002638757,-342.99,0.00034799,2]
[314121747,1708002638766,-134600.19988252,0.000348,2]
[314121748,1708002638775,-200.0,0.000348,4]
[314121749,1708002638784,-500.46779474,0.00035,7]
[314121750,1708002638793,-151.59419321,0.00035,2]
[314121751,1708002638803,-134000.56627526,0.00035,14]
[314121752,1708002638811,-155.0522226,0.00035,2]
[314121753,1708002638820,-10000.0,0.00035,2]
[314121754,1708002638830,-175.749372,0.00035035,2]
[314121755,1708002638839,-166.986018,0.00035035,2]
[314121756,1708002638848,-2433.8843727,0.0003507,2]
[314121757,1708002638857,-107388.43972006,0.0003516,2]
[314121758,1708002638872,-10003.91013348,0.0003516,2]
[314121764,1708002641332,-57666.71957772,0.0003516,2]
[314121765,1708002641342,-151.0,0.0003516,2]
[314121766,1708002641351,-151.0,0.0003516,2]
[314121767,1708002641361,-151.0,0.0003516,2]
[314121768,1708002641369,-155.0,0.0003517,2]
[314121769,1708002641378,-199.23286645,0.000352,5]
[314121770,1708002641387,-300.0,0.00035217,3]
[314121771,1708002641397,-212.85749,0.0003526,2]
[314121772,1708002641406,-1500.02,0.00035265,2]
[314121773,1708002641415,-1500.0,0.00035266,2]
[314121774,1708002641424,-1500.0,0.00035276,2]
[314121775,1708002641433,-1500.0,0.00035296,2]
[314121776,1708002641442,-1500.0,0.00035298,2]
[314121777,1708002641451,-326.9429495,0.00035342,2]
[314121778,1708002641463,-2433.88437268,0.00035396,2]
[314121779,1708002641473,-11378.36588454,0.00035424,2]
[314121780,1708002641481,-300.0,0.00035436,3]
[314121781,1708002641491,-130.97883786,0.000355,2]
[314121794,1708002643156,-478.15504077,0.000355,2]
[314121796,1708002643167,-6705.87124315,0.000355,2]
[314122013,1708003842104,-5300.87686162,0.00033067,5]
[314122014,1708003842114,-1101.07860233,0.00033067,5]
[314122015,1708003842125,-947.49963695,0.00033067,5]
[314122016,1708003842134,-150.1,0.00033126,2]
[314122017,1708003842144,-24900.0,0.00033758,2]
[314122018,1708003842153,-304.091041,0.00033899,2]
[314122019,1708003842161,-1502.43722892,0.00034,2]
[314122020,1708003842170,-155.0,0.00034616,2]
[314122021,1708003842179,-200.0,0.00034719,15]
[314122022,1708003842189,-500.9028783,0.00035,15]
[314122023,1708003842198,-792.31320463,0.00035,2]
[314122024,1708003842207,-1500.0,0.00035262,2]
[314122025,1708003842218,-1500.0,0.00035287,2]
[314122026,1708003842228,-1500.0,0.00035297,2]
[314122027,1708003842237,-1499.98,0.00035299,2]
[314122028,1708003842248,-1499.99,0.000353,2]
[314122029,1708003842259,-1500.0,0.00035302,2]
[314122030,1708003842270,-1500.0,0.00035302,2]
[314122031,1708003842280,-1075.18,0.00035304,2]
[314122032,1708003842289,-1500.0,0.00035308,2]
[314122033,1708003842298,-1500.0,0.00035331,2]
[314122034,1708003842307,-1212.33708041,0.000355,2]
[314122035,1708003842316,-7949.51106263,0.000355,30]
[314122036,1708003842326,-2000.0,0.000356,24]
[314122037,1708003842335,-2000.0,0.000356,24]
[314122038,1708003842344,-3001.637005,0.000356,2]
[314122039,1708003842354,-500.0,0.000356,2]
[314122040,1708003842363,-500.0,0.000356,2]
[314122041,1708003842372,-916.082,0.000356,2]
[314122042,1708003842381,-3629.68,0.000356,3]
[314122043,1708003842391,-2000.0,0.0003561,24]
[314122044,1708003842400,-2000.0,0.0003561,24]
[314122045,1708003842409,-580.37169468,0.00035616,14]
[314122046,1708003842419,-500.0,0.00035616,14]
[314122047,1708003842429,-500.0,0.00035616,7]
[314122048,1708003842438,-500.0,0.00035616,14]
[314122049,1708003842447,-500.0,0.00035616,7]
[314122050,1708003842456,-392.64141406,0.00035616,14]
[314122051,1708003842465,-500.0,0.00035616,14]
[314122052,1708003842474,-500.0,0.00035616,14]
[314122053,1708003842484,-500.0,0.00035616,14]
[314122054,1708003842493,-500.0,0.00035616,2]
[314122055,1708003842502,-500.0,0.00035616,14]
[314122056,1708003842512,-500.0,0.00035616,14]
[314122057,1708003842524,-500.0,0.00035616,14]
[314122058,1708003842533,-500.0,0.00035616,14]
[314122059,1708003842543,-500.0,0.00035616,14]
[314122060,1708003842552,-500.0,0.00035616,14]
[314122061,1708003842560,-575.26411866,0.00035616,14]
[314122062,1708003842569,-500.0,0.00035616,14]
[314122063,1708003842579,-500.0,0.00035616,14]
[314122064,1708003842588,-500.0,0.00035616,14]
[314122065,1708003842597,-500.0,0.00035616,14]
[314122066,1708003842606,-500.0,0.00035616,14]
[314122067,1708003842615,-731.35,0.00035616,14]
[314122068,1708003842624,-507.8299765,0.00035616,14]
[314122069,1708003842633,-500.0,0.00035616,14]
[314122070,1708003842642,-500.0,0.00035616,14]
[314122071,1708003842651,-500.0,0.00035616,14]
[314122072,1708003842661,-505.73434112,0.00035616,14]
[314122073,1708003842670,-285.50953037,0.00035616,14]
[314122074,1708003842679,-931.59,0.00035616,14]
[314122075,1708003842689,-510.46755575,0.00035616,14]
[314122076,1708003842698,-500.0,0.00035616,14]
[314122077,1708003842707,-1824.47,0.00035616,14]
[314122078,1708003842716,-517.39206153,0.00035616,14]
[314122079,1708003842725,-500.0,0.00035616,14]
[314122080,1708003842735,-500.0,0.00035616,14]
[314122081,1708003842744,-500.0,0.00035616,14]
[314122082,1708003842752,-500.0,0.00035616,14]
[314122083,1708003842761,-195.99445327,0.00035616,14]
[314122084,1708003842771,-500.0,0.00035616,14]
[314122085,1708003842780,-500.0,0.00035616,14]
[314122086,1708003842790,-500.0,0.00035616,14]
[314122087,1708003842799,-500.0,0.00035616,14]
[314122088,1708003842808,-500.0,0.00035616,14]
[314122089,1708003842817,-500.0,0.00035616,14]
[314122090,1708003842826,-500.0,0.00035616,14]
[314122091,1708003842836,-500.0,0.00035616,14]
[314122092,1708003842846,-500.0,0.00035616,14]
[314122093,1708003842858,-500.0,0.00035616,14]
[314122094,1708003842867,-500.0,0.00035616,14]
[314122095,1708003842876,-490.0,0.00035616,14]
[314122096,1708003842885,-500.0,0.00035616,14]
[314122097,1708003842894,-500.0,0.00035616,2]
[314122100,1708003842904,-500.0,0.00035616,14]
[314122102,1708003842912,-500.0,0.00035616,14]
[314122104,1708003842920,-500.0,0.00035616,14]
[314122106,1708003842931,-512.21825011,0.00035616,14]
[314122108,1708003842940,-500.0,0.00035616,14]
[314122110,1708003842949,-500.0,0.00035616,14]
[314122112,1708003842958,-500.0,0.00035616,14]
[314122113,1708003842968,-536.21689944,0.00035616,14]
[314122114,1708003842977,-500.0,0.00035616,14]
[314122116,1708003842986,-504.44306966,0.00035616,14]
[314122117,1708003842995,-184.23353177,0.00035616,14]
[314122118,1708003843005,-514.93351127,0.00035616,14]
[314122119,1708003843014,-582.68564277,0.00035616,14]
[314122120,1708003843024,-500.0,0.00035616,14]
[314122121,1708003843033,-501.23023214,0.00035616,14]
[314122122,1708003843042,-500.0,0.00035616,14]
[314122123,1708003843052,-638.34637956,0.00035616,14]
[314122124,1708003843061,-1792.73,0.00035616,7]
[314122126,1708003843070,-500.0,0.00035616,14]
[314122127,1708003843079,-500.0,0.00035616,14]
[314122128,1708003843088,-516.94149683,0.00035616,14]
[314122129,1708003843097,-503.4400308,0.00035616,14]
[314122130,1708003843106,-315.01598404,0.00035616,14]
[314122131,1708003843115,-500.0,0.00035616,14]
[314122132,1708003843124,-500.0,0.00035616,14]
[314122133,1708003843133,-528.03076737,0.00035616,14]
[314122134,1708003843143,-606.62,0.00035616,14]
[314122135,1708003843152,-500.0,0.00035616,14]
[314122136,1708003843161,-500.0,0.00035616,14]
[314122137,1708003843170,-544.11636985,0.00035616,14]
[314122138,1708003843180,-500.0,0.00035616,14]
[314122139,1708003843189,-500.0,0.00035616,14]
[314122140,1708003843199,-510.79586648,0.00035616,14]
[314122141,1708003843209,-500.0,0.00035616,14]
[314122142,1708003843220,-500.0,0.00035616,2]
[314122143,1708003843230,-500.0,0.00035616,14]
[314122145,1708003843242,-574.18027158,0.00035616,14]
[314122147,1708003843252,-220.0,0.00035616,2]
[314122148,1708003843262,-500.0,0.00035616,2]
[314122149,1708003843273,-506.21858276,0.00035616,14]
[314122150,1708003843282,-500.0,0.00035616,14]
[314122151,1708003843293,-503.20204968,0.00035616,14]
[314122152,1708003843303,-500.0,0.00035616,7]
[314122153,1708003843314,-541.69581236,0.00035616,14]
[314122154,1708003843324,-544.72,0.00035616,14]
[314122155,1708003843334,-926.95,0.00035616,14]
[314122156,1708003843344,-564.36544628,0.00035616,14]
[314122157,1708003843354,-500.0,0.00035616,14]
[314122158,1708003843363,-500.0,0.00035616,14]
[314122159,1708003843373,-501.74485484,0.00035616,14]
[314122160,1708003843382,-500.0,0.00035616,14]
[314122161,1708003843393,-500.0,0.00035616,14]
[314122162,1708003843402,-500.0,0.00035616,14]
[314122163,1708003843413,-500.0,0.00035616,14]
[314122164,1708003843422,-557.04962915,0.00035616,14]
[314122165,1708003843432,-500.0,0.00035616,2]
[314122166,1708003843441,-500.0,0.00035616,14]
[314122167,1708003843450,-500.0,0.00035616,7]
[314122168,1708003843460,-178.61972058,0.00035616,14]
[314122169,1708003843469,-500.0,0.00035616,14]
[314122170,1708003843479,-198.13534654,0.00035616,14]
[314122171,1708003843489,-495.88183261,0.00035616,14]
[314122172,1708003843498,-500.0,0.00035616,14]
[314122173,1708003843509,-401.84311323,0.00035616,14]
[314122174,1708003843522,-500.0,0.00035616,14]
[314122175,1708003843533,-403.79557639,0.00035616,14]
[314122176,1708003843542,-506.57653874,0.00035616,14]
[314122177,1708003843553,-500.0,0.00035616,14]
[314122178,1708003843562,-266.15669203,0.00035616,14]
[314122179,1708003843571,-500.0,0.00035616,14]
[314122180,1708003843581,-500.0,0.00035616,14]
[314122181,1708003843590,-500.0,0.00035616,14]
[314122182,1708003843599,-311.37712662,0.00035616,14]
[314122183,1708003843609,-714.2,0.00035616,14]
[314122184,1708003843619,-500.0,0.00035616,14]
[314122185,1708003843628,-500.0,0.00035616,14]
[314122186,1708003843636,-600.15,0.00035616,14]
[314122187,1708003843645,-500.0,0.00035616,14]
[314122188,1708003843654,-500.0,0.00035616,14]
[314122189,1708003843664,-500.0,0.00035616,14]
[314122190,1708003843673,-500.0,0.00035616,14]
[314122191,1708003843682,-500.0,0.00035616,14]
[314122192,1708003843691,-500.0,0.00035616,14]
[314122193,1708003843700,-500.0,0.00035616,14]
[314122194,1708003843709,-15406.33,0.00035616,14]
[314122195,1708003843719,-500.0,0.00035616,14]
[314122196,1708003843728,-500.0,0.00035616,14]
[314122197,1708003843737,-22522.6,0.00035616,14]
[314122198,1708003843746,-500.0,0.00035616,14]
[314122199,1708003843756,-500.0,0.00035616,14]
[314122200,1708003843767,-500.0,0.00035616,14]
[314122201,1708003843778,-500.0,0.00035616,14]
[314122202,1708003843789,-650.81,0.00035616,14]
[314122203,1708003843798,-500.0,0.00035616,14]
[314122204,1708003843807,-585.9,0.00035616,14]
[314122205,1708003843816,-500.0,0.00035616,14]
[314122206,1708003843825,-500.0,0.00035616,14]
[314122207,1708003843834,-500.0,0.00035616,14]
[314122208,1708003843844,-500.0,0.00035616,14]
[314122209,1708003843854,-500.0,0.00035616,14]
[314122210,1708003843864,-578.55450017,0.00035616,14]
[314122211,1708003843873,-583.6952767,0.00035616,14]
[314122212,1708003843882,-14132.34,0.00035616,14]
[314122213,1708003843961,-500.0,0.00035616,14]
[314122214,1708003843971,-520.94030356,0.00035616,14]
[314122215,1708003843979,-500.0,0.00035616,14]
[314122216,1708003843987,-500.0,0.00035616,14]
[314122217,1708003843997,-489.82980321,0.00035616,14]
[314122218,1708003844006,-212.18676146,0.00035616,14]
[314122219,1708003844015,-2088.47,0.00035616,14]
[314122220,1708003844029,-500.0,0.00035616,14]
[314122221,1708003844038,-1201.2,0.00035616,14]
[314122222,1708003844048,-500.0,0.00035616,14]
[314122223,1708003844057,-4676.0,0.00035616,14]
[314122224,1708003844066,-500.0,0.00035616,14]
[314122225,1708003844076,-688.89,0.00035616,14]
[314122226,1708003844086,-2240.38,0.00035616,14]
[314122227,1708003844095,-1356.59,0.00035616,14]
[314122228,1708003844105,-442.04517344,0.00035616,14]
[314122229,1708003844116,-7153.04,0.00035616,14]
[314122230,1708003844129,-500.0,0.00035616,14]
[314122231,1708003844139,-500.0,0.00035616,2]
[314122232,1708003844148,-1000.0,0.00035616,2]
[314122233,1708003844158,-2094.54,0.00035616,14]
[314122234,1708003844167,-6251.19,0.00035616,14]
[314122235,1708003844180,-500.0,0.00035616,14]
[314122236,1708003844190,-543.30693965,0.00035616,14]
[314122237,1708003844199,-500.0,0.00035616,14]
[314122238,1708003844208,-2776.51,0.00035616,14]
[314122239,1708003844218,-241.4578223,0.00035616,14]
[314122240,1708003844227,-1068.72,0.00035616,14]
[314122241,1708003844236,-500.0,0.00035616,14]
[314122242,1708003844245,-500.0,0.00035616,14]
[314122243,1708003844255,-500.0,0.00035616,14]
[314122244,1708003844264,-500.0,0.00035616,14]
[314122245,1708003844275,-500.0,0.00035616,14]
[314122246,1708003844285,-500.0,0.00035616,14]
[314122247,1708003844294,-5947.08964465,0.00035616,14]
[314122262,1708003846354,-406.31867904,0.00035606,3]
[314122263,1708003846442,-2618.41132096,0.00035606,3]
[314122264,1708003846451,-8174.39035535,0.00035616,14]
[314122265,1708003846459,-500.0,0.00035616,14]
[314122266,1708003846468,-1217.05,0.00035616,14]
[314122267,1708003846477,-542.81677724,0.00035616,14]
[314122268,1708003846486,-1186.65,0.00035616,14]
[314122269,1708003846495,-500.0,0.00035616,14]
[314122270,1708003846504,-809.37,0.00035616,14]
[314122271,1708003846513,-810.37,0.00035616,14]
[314122272,1708003846524,-500.0,0.00035616,14]
[314122273,1708003846533,-500.0,0.00035616,14]
[314122274,1708003846542,-537.0742866,0.00035616,14]
[314122275,1708003846551,-177.5077488,0.00035616,14]
[314122276,1708003903082,5028.21,0.0002,10]
[314122295,1708005032532,-570.71840827,0.0003,4]
[314122296,1708005032544,-4272.28159173,0.0003,4]
[314122297,1708005032554,-166.666666,0.00031955,2]
[314122298,1708005032564,-304.091041,0.00032425,2]
[314122299,1708005032574,-24900.0,0.00032871,2]
[314122300,1708005032583,-829.0,0.00033,2]
[314122301,1708005032592,-802.66868073,0.00033089,4]
[314122302,1708005032602,-589.60662963,0.00033123,4]
[314122303,1708005032612,-150.1,0.00033126,2]
[314122304,1708005032623,-1737.66471589,0.00033146,5]
[314122305,1708005032632,-829.0,0.00033151,2]
[314122306,1708005032642,-829.0,0.00033425,2]
[314122307,1708005032651,-829.0,0.00033699,2]
[314122308,1708005032660,-829.0,0.00033973,2]
[314122309,1708005032670,-829.0,0.00034247,2]
[314122310,1708005032680,-829.0,0.00034521,2]
[314122311,1708005032689,-155.0,0.00034616,2]
[314122312,1708005032698,-186.2,0.0003462,120]
[314122313,1708005032708,-171.2248221,0.00034685,2]
[314122314,1708005032717,-2520.61,0.00035128,3]
[314122315,1708005032726,-21429.24883677,0.00035138,7]
[314122417,1708005039464,-658.93879695,0.00033146,5]
[314122509,1708005046583,-1094.6,0.00033146,5]
[314122510,1708005065128,1000.0,0.000211,120]
[314122515,1708005266559,174.59724927,0.00021,2]
[314122520,1708006120127,10000.0,0.00021002,2]
[314122521,1708006140231,441.92,0.0003,120]
[314122545,1708006231692,-294.82619206,0.00022,2]
[314122546,1708006231702,-350.0,0.00022,2]
[314122547,1708006231711,-350.0,0.00023,2]
[314122548,1708006231720,-350.0,0.00026,2]
[314122549,1708006231729,-1689.22499941,0.00026191,2]
[314122550,1708006231738,-350.0,0.00027,2]
[314122551,1708006231748,-310.02886222,0.0003,2]
[314122552,1708006231757,-765.7294,0.0003,2]
[314122553,1708006231766,-9553.88789206,0.0003,2]
[314122554,1708006231775,-211.0,0.00030343,2]
[314122555,1708006231785,-24900.0,0.00030343,2]
[314122556,1708006231794,-243.8375498,0.00030492,2]
[314122557,1708006231803,-200.0,0.00031499,15]
[314122558,1708006231812,-623.26782356,0.00031995,2]
[314122559,1708006231821,-3392.5992057,0.00032332,2]
[314122560,1708006231830,-1003.64702236,0.00032426,2]
[314122561,1708006231839,-155.0,0.00033,2]
[314122562,1708006231849,-516.33393116,0.00033038,2]
[314122563,1708006231859,-874.9604027,0.00033146,5]
[314122564,1708006231869,-9613.12025724,0.00033157,5]
[314122565,1708006231878,-6881.60708272,0.0003318,4]
[314122566,1708006231889,-141.63196448,0.00033192,4]
[314122593,1708006237816,-2783.26,0.00033192,4]
[314122596,1708006237827,-502.12603421,0.00033192,4]
[314122597,1708006237837,-168.769378,0.00033958,2]
[314122599,1708006237846,-319.60081088,0.00034021,2]
[314122602,1708006237857,-680.63924673,0.00034021,2]
[314122604,1708006237867,-200.230317,0.00034478,2]
[314122606,1708006237876,-155.0,0.00034616,2]
[314122608,1708006237885,-280.0,0.00034649,15]
[314122610,1708006237895,-4257.85,0.0003498,3]
[314122612,1708006237904,-3206.54598975,0.0003499,3]
[314122614,1708006237916,-1322.70401025,0.0003499,3]
[314122616,1708006237925,-1637.02206126,0.00035,4]
[314122782,1708006240979,-21326.61281591,0.00033192,5]
[314122783,1708006240989,-273.98048487,0.00035,4]
[314122784,1708006241001,-414.74126486,0.00035,4]
[314122785,1708006241012,-1695.0945814,0.00035,4]
[314122786,1708006241021,-216.5790776,0.00035068,2]
[314122787,1708006241031,-5874.72008587,0.00035138,7]
[314123059,1708007441593,-1399.0,0.0003,10]
[314123060,1708007441602,-344.22262078,0.0003289,2]
[314123061,1708007441612,-311.1021349,0.00033,4]
[314123062,1708007441621,-638.0,0.00033,2]
[314123063,1708007441630,-775.84420818,0.00033055,2]
[314123064,1708007441641,-1624.62497546,0.00033055,2]
[314123065,1708007441652,-20539.87344336,0.00033055,2]
[314123066,1708007441662,-638.0,0.00033151,2]
[314123067,1708007441680,-5000.0,0.00033192,7]
[314123068,1708007441692,-3099.3840673,0.00033203,4]
[314123069,1708007441702,-5000.0,0.00033203,7]
[314123070,1708007441713,-1485.91117503,0.00033225,4]
[314123071,1708007441723,-1054.52105211,0.00033225,4]
[314123072,1708007441732,-638.0,0.00033425,2]
[314123073,1708007441742,-638.0,0.00033699,2]
[314123074,1708007441751,-638.0,0.00033973,2]
[314123075,1708007441761,-638.0,0.00034247,2]
[314123076,1708007441770,-638.0,0.00034521,2]
[314123077,1708007441780,-155.0,0.00034616,2]
[314123078,1708007441790,-312.8842493,0.00034678,2]
[314123079,1708007441799,-200.230317,0.00034678,2]
[314123080,1708007441809,-308.766801,0.00034678,2]
[314123081,1708007441818,-328.2596335,0.00034678,2]
[314123082,1708007441828,-200.0,0.00034707,15]
[314123083,1708007441838,-203.77283047,0.00035,7]
[314123084,1708007441847,-8011.73195747,0.00035138,7]
[314123085,1708007441864,-14216.86210666,0.00035138,7]
[314123106,1708007444063,-467.43701323,0.00035138,7]
[314123107,1708007444073,-2464.03,0.0003523,3]
[314123109,1708007444082,-2956.84,0.0003524,3]
[314123111,1708007444092,-3548.21,0.0003525,3]
[314123112,1708007444102,-200.0,0.0003526,2]
[314123114,1708007444111,-200.0,0.0003526,2]
[314123115,1708007444122,-200.0,0.0003526,2]
[314123117,1708007444132,-200.0,0.0003526,2]
[314123118,1708007444142,-200.0,0.0003526,2]
[314123119,1708007444152,-200.0,0.0003526,2]
[314123120,1708007444162,-200.0,0.0003526,2]
[314123121,1708007444172,-200.0,0.0003526,2]
[314123122,1708007444181,-200.0,0.0003526,2]
[314123123,1708007444191,-200.0,0.0003526,2]
[314123124,1708007444200,-200.0,0.0003526,2]
[314123125,1708007444209,-200.0,0.0003526,2]
[314123126,1708007444219,-400.0,0.0003526,2]
[314123127,1708007444229,-550.65442171,0.000354,2]
[314123128,1708007444239,-5000.0,0.00035435,7]
[314123129,1708007444249,-5000.0,0.0003545,7]
[314123130,1708007444258,-550.6544217,0.00035455,2]
[314123131,1708007444268,-7000.0,0.000355,5]
[314123132,1708007444278,-7000.0,0.000355,5]
[314123133,1708007444288,-7047.100746,0.000355,5]
[314123134,1708007444297,-550.6544217,0.0003551,2]
[314123135,1708007444307,-30665.67259282,0.00035516,2]
[314123136,1708007444317,-151.0,0.00035516,2]
[314123137,1708007444326,-151.0,0.00035516,2]
[314123138,1708007444452,-550.6544217,0.00035565,2]
[314123139,1708007444463,-1331.329946,0.00035599,14]
[314123140,1708007444472,-2000.0,0.000356,24]
[314123141,1708007444482,-2000.0,0.000356,24]
[314123142,1708007444491,-2000.0,0.0003561,24]
[314123143,1708007444500,-2000.0,0.0003561,24]
[314123144,1708007444509,-151.0,0.00035615,2]
[314123145,1708007444518,-159.826059,0.00035615,2]
[314123146,1708007444527,-151.0,0.00035615,2]
[314123147,1708007444536,-151.0,0.00035615,2]
[314123148,1708007444546,-151.0,0.00035615,2]
[314123149,1708007444555,-151.0,0.00035615,2]
[314123150,1708007444564,-151.0,0.00035615,2]